[Event "Late-Titled-Tuesday-Blitz-May-07-2024"]
[Site "Chess.com"]
[Date "2024.05.07"]
[Round "3"]
[White "sammartin99"]
[Black "maracayo"]
[Result "0-1"]
[WhiteElo "1890"]
[BlackElo "2371"]
[TimeControl "180+1"]
[EndTime "14:28:13 PDT"]
[Termination "maracayo won on time"]

1. d4 {[%clk 0:03:00.9]} 1... d6 {[%clk 0:02:55.2]} 2. e4 {[%clk 0:02:57.6]}
2... Nf6 {[%clk 0:02:53.9]} 3. Nc3 {[%clk 0:02:56.4]} 3... c6 {[%clk 0:02:54]}
4. Nf3 {[%clk 0:02:54.1]} 4... Qa5 {[%clk 0:02:53.7]} 5. Bd2 {[%clk 0:02:48.9]}
5... e5 {[%clk 0:02:53.1]} 6. Bd3 {[%clk 0:02:39.1]} 6... Qc7 {[%clk 0:02:49.3]}
7. a4 {[%clk 0:02:27.1]} 7... Be7 {[%clk 0:02:47.7]} 8. h3 {[%clk 0:02:22.5]}
8... O-O {[%clk 0:02:46.5]} 9. O-O {[%clk 0:02:22.8]} 9... Re8 {[%clk
0:02:45.5]} 10. dxe5 {[%clk 0:02:10.2]} 10... dxe5 {[%clk 0:02:44.5]} 11. Bc4
{[%clk 0:02:10.8]} 11... h6 {[%clk 0:02:42.7]} 12. Be3 {[%clk 0:02:00.6]} 12...
Nbd7 {[%clk 0:02:39.4]} 13. Nh4 {[%clk 0:01:28.1]} 13... Nc5 {[%clk 0:02:11.5]}
14. Qf3 {[%clk 0:01:16.6]} 14... Be6 {[%clk 0:01:53.9]} 15. Bxe6 {[%clk
0:01:14.3]} 15... Nxe6 {[%clk 0:01:52.9]} 16. Nf5 {[%clk 0:01:10.9]} 16... Nf4
{[%clk 0:01:24.8]} 17. g3 {[%clk 0:00:52.9]} 17... Nxh3+ {[%clk 0:01:14.3]} 18.
Kg2 {[%clk 0:00:53]} 18... Ng5 {[%clk 0:01:14.1]} 19. Bxg5 {[%clk 0:00:33.4]}
19... hxg5 {[%clk 0:01:13.4]} 20. Rh1 {[%clk 0:00:33.6]} 20... g6 {[%clk
0:00:30.9]} 21. g4 {[%clk 0:00:18.7]} 21... Bf8 {[%clk 0:00:15.3]} 22. Nh6+
{[%clk 0:00:07.1]} 22... Bxh6 {[%clk 0:00:14.5]} 23. Qxf6 {[%clk 0:00:07]} 23...
Bg7 {[%clk 0:00:13.7]} 24. Qxg5 {[%clk 0:00:07.1]} 24... Qd8 {[%clk 0:00:10.9]}
25. Qe3 {[%clk 0:00:04.8]} 25... Qb6 {[%clk 0:00:11]} 26. Qh3 {[%clk 0:00:02.4]}
26... Qxb2 {[%clk 0:00:10]} 27. Ne2 {[%clk 0:00:01.3]} 27... Qxc2 {[%clk
0:00:09.3]} 28. Ng3 {[%clk 0:00:01.2]} 28... Qc4 {[%clk 0:00:05.5]} 29. Rad1
{[%clk 0:00:00.6]} 29... Rad8 {[%clk 0:00:03.9]} 0-1

[Event "Late-Titled-Tuesday-Blitz-May-07-2024"]
[Site "Chess.com"]
[Date "2024.05.07"]
[Round "3"]
[White "Road2GM3000"]
[Black "Tibmat"]
[Result "0-1"]
[WhiteElo "2472"]
[BlackElo "2684"]
[TimeControl "180+1"]
[EndTime "14:28:17 PDT"]
[Termination "Tibmat won on time"]

1. d4 {[%clk 0:02:58.4]} 1... Nf6 {[%clk 0:02:59.6]} 2. c4 {[%clk 0:02:58.2]}
2... e6 {[%clk 0:03:00.1]} 3. Nc3 {[%clk 0:02:58.2]} 3... Bb4 {[%clk 0:03:00.6]}
4. Nf3 {[%clk 0:02:58.8]} 4... O-O {[%clk 0:02:58.7]} 5. Bg5 {[%clk 0:02:58.9]}
5... h6 {[%clk 0:02:56.3]} 6. Bh4 {[%clk 0:02:59.2]} 6... Bxc3+ {[%clk
0:02:47.6]} 7. bxc3 {[%clk 0:02:59.3]} 7... d6 {[%clk 0:02:48.3]} 8. e4 {[%clk
0:02:54.2]} 8... g5 {[%clk 0:02:48]} 9. Nxg5 {[%clk 0:02:54.3]} 9... hxg5 {[%clk
0:02:47.5]} 10. Bxg5 {[%clk 0:02:55.2]} 10... Nbd7 {[%clk 0:02:45.4]} 11. e5
{[%clk 0:02:33.1]} 11... dxe5 {[%clk 0:02:14.8]} 12. dxe5 {[%clk 0:02:33.2]}
12... c6 {[%clk 0:02:15.2]} 13. exf6 {[%clk 0:02:19.5]} 13... Qa5 {[%clk
0:02:15]} 14. Qg4 {[%clk 0:02:18.4]} 14... Ne5 {[%clk 0:01:58.7]} 15. Qg3 {[%clk
0:02:12.4]} 15... Ng6 {[%clk 0:01:59]} 16. Be2 {[%clk 0:01:43.5]} 16... Rd8
{[%clk 0:01:44]} 17. h4 {[%clk 0:01:40.2]} 17... Kh7 {[%clk 0:01:26.7]} 18. Bd3
{[%clk 0:00:57.3]} 18... Qxc3+ {[%clk 0:01:21.5]} 19. Ke2 {[%clk 0:00:56.1]}
19... Qb2+ {[%clk 0:00:30.3]} 20. Bd2 {[%clk 0:00:48.4]} 20... Kh8 {[%clk
0:00:30.9]} 21. f4 {[%clk 0:00:29.5]} 21... e5 {[%clk 0:00:25.9]} 22. fxe5
{[%clk 0:00:15.1]} 22... Bf5 {[%clk 0:00:25.6]} 23. Rab1 {[%clk 0:00:08]} 23...
Qd4 {[%clk 0:00:17.3]} 24. Rb3 {[%clk 0:00:04.2]} 24... Bxd3+ {[%clk 0:00:13.4]}
25. Rxd3 {[%clk 0:00:03.8]} 25... Qxc4 {[%clk 0:00:13.6]} 26. Qe3 {[%clk
0:00:03.5]} 26... Nf4+ {[%clk 0:00:05.5]} 27. Qxf4 {[%clk 0:00:01.1]} 27...
Qxd3+ {[%clk 0:00:05.2]} 28. Kd1 {[%clk 0:00:00.6]} 28... Qb1+ {[%clk
0:00:04.2]} 29. Ke2 {[%clk 0:00:01.2]} 29... Qd3+ {[%clk 0:00:04.3]} 30. Kd1
{[%clk 0:00:01.8]} 30... Qg6 {[%clk 0:00:02]} 31. Qh6+ {[%clk 0:00:01.3]} 31...
Qxh6 {[%clk 0:00:02.3]} 0-1

[Event "Late-Titled-Tuesday-Blitz-May-07-2024"]
[Site "Chess.com"]
[Date "2024.05.07"]
[Round "3"]
[White "h4parah5"]
[Black "BardArtem"]
[Result "1/2-1/2"]
[WhiteElo "3015"]
[BlackElo "2773"]
[TimeControl "180+1"]
[EndTime "14:28:19 PDT"]
[Termination "Game drawn by repetition"]

1. Nf3 {[%clk 0:03:00.9]} 1... d5 {[%clk 0:02:59.3]} 2. e3 {[%clk 0:03:00.9]}
2... Nf6 {[%clk 0:02:59.5]} 3. c4 {[%clk 0:03:01.2]} 3... c6 {[%clk 0:02:58.4]}
4. Qc2 {[%clk 0:03:00.3]} 4... a6 {[%clk 0:02:58]} 5. b3 {[%clk 0:02:58.3]} 5...
g6 {[%clk 0:02:55.7]} 6. Bb2 {[%clk 0:02:58]} 6... Bg7 {[%clk 0:02:56.4]} 7. Be2
{[%clk 0:02:57.9]} 7... O-O {[%clk 0:02:57]} 8. O-O {[%clk 0:02:58]} 8... Bg4
{[%clk 0:02:53.4]} 9. d3 {[%clk 0:02:56.6]} 9... Nbd7 {[%clk 0:02:52.7]} 10.
Nbd2 {[%clk 0:02:56.4]} 10... e6 {[%clk 0:02:52.7]} 11. h3 {[%clk 0:02:56.3]}
11... Bxf3 {[%clk 0:02:52.9]} 12. Nxf3 {[%clk 0:02:57.2]} 12... Ne8 {[%clk
0:02:52]} 13. Bxg7 {[%clk 0:02:50.8]} 13... Nxg7 {[%clk 0:02:52]} 14. b4 {[%clk
0:02:50.6]} 14... a5 {[%clk 0:02:50.7]} 15. a3 {[%clk 0:02:49.5]} 15... axb4
{[%clk 0:02:51]} 16. axb4 {[%clk 0:02:50.4]} 16... Qe7 {[%clk 0:02:48.5]} 17.
Qb2 {[%clk 0:02:49.4]} 17... dxc4 {[%clk 0:02:43.9]} 18. dxc4 {[%clk 0:02:48.9]}
18... e5 {[%clk 0:02:44.7]} 19. c5 {[%clk 0:02:46.6]} 19... h6 {[%clk 0:02:40]}
20. Nd2 {[%clk 0:02:43.2]} 20... b6 {[%clk 0:02:36]} 21. cxb6 {[%clk 0:02:35.2]}
21... Nxb6 {[%clk 0:02:36.9]} 22. Bf3 {[%clk 0:02:29.4]} 22... Nd5 {[%clk
0:02:27.2]} 23. Bxd5 {[%clk 0:02:01.5]} 23... cxd5 {[%clk 0:02:28.1]} 24. Rxa8
{[%clk 0:01:59.3]} 24... Rxa8 {[%clk 0:02:29]} 25. b5 {[%clk 0:01:59.6]} 25...
Nf5 {[%clk 0:02:19.7]} 26. b6 {[%clk 0:01:56.1]} 26... Rb8 {[%clk 0:02:19.9]}
27. Rb1 {[%clk 0:01:55.2]} 27... d4 {[%clk 0:02:17]} 28. e4 {[%clk 0:01:50.4]}
28... Nd6 {[%clk 0:02:17.1]} 29. Qb4 {[%clk 0:01:49.8]} 29... Qd7 {[%clk
0:02:09.3]} 30. Qc5 {[%clk 0:01:48.6]} 30... Qe6 {[%clk 0:01:51.6]} 31. Qc6
{[%clk 0:01:09.9]} 31... Kg7 {[%clk 0:01:38.3]} 32. b7 {[%clk 0:00:49.1]} 32...
Qe7 {[%clk 0:01:34.8]} 33. Qc5 {[%clk 0:00:45]} 33... Kf8 {[%clk 0:01:10.7]} 34.
Rb6 {[%clk 0:00:37.5]} 34... Nxb7 {[%clk 0:00:59.9]} 35. Qd5 {[%clk 0:00:33.7]}
35... Qc7 {[%clk 0:00:50.6]} 36. Rb5 {[%clk 0:00:30.8]} 36... Nd8 {[%clk
0:00:39.5]} 37. Rc5 {[%clk 0:00:21.5]} 37... Qe7 {[%clk 0:00:34.7]} 38. Nc4
{[%clk 0:00:20.1]} 38... Ne6 {[%clk 0:00:31]} 39. Rc6 {[%clk 0:00:13.3]} 39...
Qg5 {[%clk 0:00:25.7]} 40. Qd6+ {[%clk 0:00:11.5]} 40... Kg7 {[%clk 0:00:24.3]}
41. Qxb8 {[%clk 0:00:12.4]} 41... Qc1+ {[%clk 0:00:24.3]} 42. Kh2 {[%clk
0:00:11.4]} 42... Qf4+ {[%clk 0:00:25]} 43. Kg1 {[%clk 0:00:11.2]} 43... Qc1+
{[%clk 0:00:25.8]} 44. Kh2 {[%clk 0:00:10]} 44... Qf4+ {[%clk 0:00:26.7]} 45.
Kg1 {[%clk 0:00:10.2]} 45... Qc1+ {[%clk 0:00:27.3]} 1/2-1/2

[Event "Late-Titled-Tuesday-Blitz-May-07-2024"]
[Site "Chess.com"]
[Date "2024.05.07"]
[Round "3"]
[White "GMRafpig"]
[Black "klimkoj"]
[Result "0-1"]
[WhiteElo "2732"]
[BlackElo "2946"]
[TimeControl "180+1"]
[EndTime "14:28:23 PDT"]
[Termination "klimkoj won by resignation"]

1. c4 {[%clk 0:03:00.9]} 1... c5 {[%clk 0:03:00]} 2. g3 {[%clk 0:02:57.7]} 2...
Nf6 {[%clk 0:02:59.8]} 3. Bg2 {[%clk 0:02:55.4]} 3... d5 {[%clk 0:03:00.6]} 4.
cxd5 {[%clk 0:02:55.5]} 4... Nxd5 {[%clk 0:03:01.5]} 5. Nc3 {[%clk 0:02:56.1]}
5... Nc7 {[%clk 0:02:59.9]} 6. d3 {[%clk 0:02:51.9]} 6... e5 {[%clk 0:02:59.3]}
7. Nf3 {[%clk 0:02:50.1]} 7... Nc6 {[%clk 0:02:57.5]} 8. O-O {[%clk 0:02:46.3]}
8... Be7 {[%clk 0:02:55.9]} 9. Nd2 {[%clk 0:02:46.3]} 9... Bd7 {[%clk
0:02:55.3]} 10. Nc4 {[%clk 0:02:46.2]} 10... f6 {[%clk 0:02:55.6]} 11. f4 {[%clk
0:02:46]} 11... exf4 {[%clk 0:02:55.8]} 12. Bxf4 {[%clk 0:02:44.6]} 12... O-O
{[%clk 0:02:54.1]} 13. Rc1 {[%clk 0:02:37.3]} 13... Be6 {[%clk 0:02:38.2]} 14.
Kh1 {[%clk 0:01:55.1]} 14... Nd5 {[%clk 0:02:36]} 15. Nxd5 {[%clk 0:01:49.1]}
15... Bxd5 {[%clk 0:02:36.9]} 16. Bxd5+ {[%clk 0:01:13.3]} 16... Qxd5+ {[%clk
0:02:37.8]} 17. e4 {[%clk 0:01:13.7]} 17... Qe6 {[%clk 0:02:36.2]} 18. Ne3
{[%clk 0:01:11.9]} 18... Rfd8 {[%clk 0:02:30.3]} 19. Nd5 {[%clk 0:01:09.7]}
19... Rac8 {[%clk 0:02:20.3]} 20. a3 {[%clk 0:01:04.8]} 20... Kh8 {[%clk
0:02:08.1]} 21. Qh5 {[%clk 0:01:03.9]} 21... Bf8 {[%clk 0:01:57.1]} 22. Rcd1
{[%clk 0:00:55.4]} 22... Ne7 {[%clk 0:01:50.5]} 23. Nc3 {[%clk 0:00:42.8]} 23...
Ng6 {[%clk 0:01:41.8]} 24. Be3 {[%clk 0:00:40.7]} 24... b6 {[%clk 0:01:30]} 25.
Nd5 {[%clk 0:00:39.7]} 25... c4 {[%clk 0:01:24.2]} 26. Qf5 {[%clk 0:00:20.1]}
26... Qxf5 {[%clk 0:01:20.5]} 27. Rxf5 {[%clk 0:00:21]} 27... cxd3 {[%clk
0:01:18.7]} 28. Rxd3 {[%clk 0:00:21.3]} 28... Rc4 {[%clk 0:01:11]} 29. Nf4
{[%clk 0:00:16]} 29... Rxd3 {[%clk 0:01:08.8]} 30. Nxd3 {[%clk 0:00:16.8]} 30...
Rxe4 {[%clk 0:01:08.9]} 31. Bf2 {[%clk 0:00:16.9]} 31... Ne7 {[%clk 0:01:01.2]}
32. Rb5 {[%clk 0:00:16.9]} 32... Kg8 {[%clk 0:00:51.6]} 33. Kg2 {[%clk 0:00:14]}
33... Kf7 {[%clk 0:00:50.9]} 34. Kf3 {[%clk 0:00:14.5]} 34... Rc4 {[%clk
0:00:51.4]} 35. Nb4 {[%clk 0:00:11.1]} 35... Ke6 {[%clk 0:00:48.3]} 36. a4
{[%clk 0:00:10.3]} 36... Nf5 {[%clk 0:00:43.5]} 37. Nd3 {[%clk 0:00:09.2]} 37...
Nd6 {[%clk 0:00:40.9]} 38. Rb4 {[%clk 0:00:08.4]} 38... Rxb4 {[%clk 0:00:39.8]}
39. Nxb4 {[%clk 0:00:09.3]} 39... Nc4 {[%clk 0:00:40.7]} 40. Nc6 {[%clk
0:00:09.6]} 40... Nxb2 {[%clk 0:00:38.9]} 41. Nxa7 {[%clk 0:00:09.3]} 41... Nxa4
{[%clk 0:00:39.5]} 42. Ke4 {[%clk 0:00:10.1]} 42... Bc5 {[%clk 0:00:39.5]} 43.
Be1 {[%clk 0:00:09.8]} 43... Nb2 {[%clk 0:00:37.1]} 44. Nb5 {[%clk 0:00:09.1]}
44... Nc4 {[%clk 0:00:37.5]} 45. Bc3 {[%clk 0:00:09.4]} 45... Nd6+ {[%clk
0:00:37.5]} 46. Nxd6 {[%clk 0:00:09.5]} 46... Bxd6 {[%clk 0:00:38.4]} 0-1

[Event "Late-Titled-Tuesday-Blitz-May-07-2024"]
[Site "Chess.com"]
[Date "2024.05.07"]
[Round "3"]
[White "bancsoo"]
[Black "Mikhal867"]
[Result "1-0"]
[WhiteElo "2859"]
[BlackElo "2519"]
[TimeControl "180+1"]
[EndTime "14:28:28 PDT"]
[Termination "bancsoo won by checkmate"]

1. Nf3 {[%clk 0:03:00.9]} 1... c5 {[%clk 0:02:58]} 2. c4 {[%clk 0:03:00.4]} 2...
Nf6 {[%clk 0:02:53.1]} 3. Nc3 {[%clk 0:03:00.5]} 3... d5 {[%clk 0:02:52.5]} 4.
cxd5 {[%clk 0:03:00.6]} 4... Nxd5 {[%clk 0:02:51.5]} 5. g3 {[%clk 0:02:46.3]}
5... Nc6 {[%clk 0:02:50.1]} 6. Bg2 {[%clk 0:02:45.6]} 6... Nc7 {[%clk
0:02:50.1]} 7. d3 {[%clk 0:02:42.6]} 7... e5 {[%clk 0:02:49.9]} 8. Nd2 {[%clk
0:02:36.4]} 8... Bd7 {[%clk 0:02:48.8]} 9. O-O {[%clk 0:02:32.2]} 9... Be7
{[%clk 0:02:48.1]} 10. Nc4 {[%clk 0:02:23.7]} 10... f6 {[%clk 0:02:47.1]} 11. f4
{[%clk 0:02:09.6]} 11... exf4 {[%clk 0:02:46.6]} 12. Bxf4 {[%clk 0:02:09.8]}
12... b6 {[%clk 0:02:35.6]} 13. Nd6+ {[%clk 0:02:05.7]} 13... Kf8 {[%clk
0:02:14.8]} 14. Nc4 {[%clk 0:01:54.4]} 14... Ne6 {[%clk 0:02:09.7]} 15. Bd2
{[%clk 0:01:47.7]} 15... Rc8 {[%clk 0:02:06.7]} 16. Nd5 {[%clk 0:01:47]} 16...
h5 {[%clk 0:01:55]} 17. Bc3 {[%clk 0:01:42.5]} 17... h4 {[%clk 0:01:46.8]} 18.
a4 {[%clk 0:01:13.8]} 18... Ned4 {[%clk 0:01:45.6]} 19. e3 {[%clk 0:01:09]}
19... Nf5 {[%clk 0:01:43.2]} 20. g4 {[%clk 0:01:07.5]} 20... h3 {[%clk
0:01:42.4]} 21. Be4 {[%clk 0:01:05.5]} 21... Nh4 {[%clk 0:01:16.2]} 22. g5
{[%clk 0:01:04.5]} 22... f5 {[%clk 0:01:10.2]} 23. Qd2 {[%clk 0:00:17.4]} 23...
Kg8 {[%clk 0:01:07.7]} 24. Bh1 {[%clk 0:00:17.1]} 24... Bxg5 {[%clk 0:01:01]}
25. Nf4 {[%clk 0:00:15]} 25... Be8 {[%clk 0:00:47.5]} 26. Bd5+ {[%clk
0:00:14.6]} 26... Kh7 {[%clk 0:00:45.2]} 27. Be6 {[%clk 0:00:10.4]} 27... Bd7
{[%clk 0:00:40.4]} 28. Bxd7 {[%clk 0:00:08.1]} 28... Qxd7 {[%clk 0:00:40.4]} 29.
Qf2 {[%clk 0:00:08.7]} 29... Kg8 {[%clk 0:00:18.1]} 30. Qg3 {[%clk 0:00:08.6]}
30... Qe7 {[%clk 0:00:17.5]} 31. Rae1 {[%clk 0:00:08.3]} 31... Rd8 {[%clk
0:00:15.9]} 32. e4 {[%clk 0:00:08.8]} 32... Nd4 {[%clk 0:00:13.9]} 33. exf5
{[%clk 0:00:08.8]} 33... Nhxf5 {[%clk 0:00:14]} 34. Qg4 {[%clk 0:00:06.7]} 34...
Qf6 {[%clk 0:00:11.2]} 35. Ne6 {[%clk 0:00:07]} 35... Qh6 {[%clk 0:00:06.2]} 36.
Qxg5 {[%clk 0:00:06.5]} 36... Qxg5+ {[%clk 0:00:06]} 37. Nxg5 {[%clk 0:00:06.9]}
37... Nh4 {[%clk 0:00:05.3]} 38. Bxd4 {[%clk 0:00:06.8]} 38... Rxd4 {[%clk
0:00:04.7]} 39. Re8# {[%clk 0:00:07.1]} 1-0

[Event "Late-Titled-Tuesday-Blitz-May-07-2024"]
[Site "Chess.com"]
[Date "2024.05.07"]
[Round "3"]
[White "Supelyel"]
[Black "nabukatnezarr"]
[Result "1-0"]
[WhiteElo "2415"]
[BlackElo "2597"]
[TimeControl "180+1"]
[EndTime "14:28:29 PDT"]
[Termination "Supelyel won on time"]

1. c4 {[%clk 0:02:56.4]} 1... Nf6 {[%clk 0:02:58.5]} 2. g3 {[%clk 0:02:49.3]}
2... g6 {[%clk 0:02:55.2]} 3. Bg2 {[%clk 0:02:48.2]} 3... Bg7 {[%clk 0:02:55.5]}
4. Nc3 {[%clk 0:02:48]} 4... O-O {[%clk 0:02:55.8]} 5. d3 {[%clk 0:02:44.4]}
5... c5 {[%clk 0:02:44.9]} 6. Nf3 {[%clk 0:02:34.7]} 6... Nc6 {[%clk 0:02:29.5]}
7. O-O {[%clk 0:02:29.8]} 7... b6 {[%clk 0:02:28.8]} 8. Bg5 {[%clk 0:02:26.9]}
8... Bb7 {[%clk 0:02:27.1]} 9. Rb1 {[%clk 0:02:26.8]} 9... h6 {[%clk 0:02:23.8]}
10. Bxf6 {[%clk 0:02:23.6]} 10... Bxf6 {[%clk 0:02:24.7]} 11. Qd2 {[%clk
0:02:23.2]} 11... Bg7 {[%clk 0:02:23.7]} 12. Rfc1 {[%clk 0:02:23.5]} 12... d6
{[%clk 0:02:21.3]} 13. a3 {[%clk 0:02:23.4]} 13... Qd7 {[%clk 0:02:18]} 14. b4
{[%clk 0:02:23]} 14... Rab8 {[%clk 0:02:14]} 15. b5 {[%clk 0:02:22.9]} 15... Na5
{[%clk 0:02:06.1]} 16. e4 {[%clk 0:01:46.4]} 16... e6 {[%clk 0:02:02.3]} 17. Na4
{[%clk 0:01:35.2]} 17... Kh7 {[%clk 0:01:55.1]} 18. h4 {[%clk 0:01:34.4]} 18...
Rbe8 {[%clk 0:01:46.1]} 19. Rd1 {[%clk 0:01:33.1]} 19... Qc7 {[%clk 0:01:33.8]}
20. Qc2 {[%clk 0:01:04.9]} 20... d5 {[%clk 0:01:25.3]} 21. cxd5 {[%clk
0:00:34.8]} 21... exd5 {[%clk 0:01:26.2]} 22. Nd2 {[%clk 0:00:22.7]} 22... d4
{[%clk 0:01:01.5]} 23. Nb2 {[%clk 0:00:20.7]} 23... f5 {[%clk 0:00:58.3]} 24.
Nbc4 {[%clk 0:00:19.6]} 24... Nxc4 {[%clk 0:00:48.9]} 25. Qxc4 {[%clk
0:00:19.6]} 25... fxe4 {[%clk 0:00:49.6]} 26. Bxe4 {[%clk 0:00:18.9]} 26... Bc8
{[%clk 0:00:45.8]} 27. h5 {[%clk 0:00:18]} 27... Bf5 {[%clk 0:00:31.6]} 28.
hxg6+ {[%clk 0:00:18]} 28... Bxg6 {[%clk 0:00:32.5]} 29. Bxg6+ {[%clk
0:00:18.3]} 29... Kxg6 {[%clk 0:00:33.4]} 30. Ne4 {[%clk 0:00:18.9]} 30... Kh7
{[%clk 0:00:22.8]} 31. Kg2 {[%clk 0:00:18.3]} 31... Qe5 {[%clk 0:00:19.9]} 32.
f4 {[%clk 0:00:17.7]} 32... Qf5 {[%clk 0:00:17.7]} 33. Rh1 {[%clk 0:00:16.8]}
33... Qg4 {[%clk 0:00:14.6]} 34. Kf2 {[%clk 0:00:15.8]} 34... Rxf4+ {[%clk
0:00:12.4]} 35. gxf4 {[%clk 0:00:16.1]} 35... Qxf4+ {[%clk 0:00:13.3]} 36. Ke2
{[%clk 0:00:16.4]} 36... Qe3+ {[%clk 0:00:12.8]} 37. Kd1 {[%clk 0:00:16]} 37...
Rxe4 {[%clk 0:00:11.4]} 38. dxe4 {[%clk 0:00:15.6]} 38... d3 {[%clk 0:00:11.4]}
39. Rh2 {[%clk 0:00:13.3]} 39... Qf3+ {[%clk 0:00:04.7]} 40. Kd2 {[%clk
0:00:12.2]} 40... Qf5 {[%clk 0:00:05.3]} 41. exf5 {[%clk 0:00:12.1]} 1-0

[Event "Late-Titled-Tuesday-Blitz-May-07-2024"]
[Site "Chess.com"]
[Date "2024.05.07"]
[Round "3"]
[White "jinxy2009"]
[Black "dolynachess"]
[Result "0-1"]
[WhiteElo "2270"]
[BlackElo "2528"]
[TimeControl "180+1"]
[EndTime "14:28:29 PDT"]
[Termination "dolynachess won by resignation"]

1. e4 {[%clk 0:02:54.6]} 1... c5 {[%clk 0:02:59.7]} 2. Nf3 {[%clk 0:02:53.5]}
2... d6 {[%clk 0:03:00.2]} 3. d4 {[%clk 0:02:54]} 3... cxd4 {[%clk 0:03:01.1]}
4. Nxd4 {[%clk 0:02:53.7]} 4... Nf6 {[%clk 0:03:02]} 5. Nc3 {[%clk 0:02:50.5]}
5... g6 {[%clk 0:03:02.9]} 6. Be3 {[%clk 0:02:49.6]} 6... Nc6 {[%clk 0:03:01.2]}
7. f3 {[%clk 0:02:49.7]} 7... h5 {[%clk 0:03:00.6]} 8. Qd2 {[%clk 0:02:47.6]}
8... Nxd4 {[%clk 0:03:00.3]} 9. Bxd4 {[%clk 0:02:46.8]} 9... Bh6 {[%clk
0:03:00.9]} 10. Qd1 {[%clk 0:02:44]} 10... O-O {[%clk 0:02:52.5]} 11. Bc4 {[%clk
0:02:42.9]} 11... Qa5 {[%clk 0:02:48.5]} 12. O-O {[%clk 0:02:41.2]} 12... Be6
{[%clk 0:02:41.6]} 13. Bxe6 {[%clk 0:02:39.3]} 13... fxe6 {[%clk 0:02:42.5]} 14.
Ne2 {[%clk 0:02:38.6]} 14... Rac8 {[%clk 0:02:34.3]} 15. c3 {[%clk 0:02:38.4]}
15... e5 {[%clk 0:02:28.9]} 16. Bf2 {[%clk 0:02:36.4]} 16... a6 {[%clk
0:02:28.6]} 17. Qb3+ {[%clk 0:02:34.1]} 17... Kh8 {[%clk 0:01:26.6]} 18. Qxb7
{[%clk 0:02:30.8]} 18... Rb8 {[%clk 0:01:26.4]} 19. Qxe7 {[%clk 0:02:30.6]}
19... Rxb2 {[%clk 0:01:26.4]} 20. Ng3 {[%clk 0:02:06]} 20... Qxc3 {[%clk
0:00:50.9]} 21. Qxd6 {[%clk 0:01:59.7]} 21... Rxf2 {[%clk 0:00:46.7]} 22. Rxf2
{[%clk 0:01:51.4]} 22... Qxa1+ {[%clk 0:00:45.3]} 23. Rf1 {[%clk 0:01:51.9]}
23... Qd4+ {[%clk 0:00:44.2]} 24. Qxd4 {[%clk 0:01:50.1]} 24... exd4 {[%clk
0:00:45.1]} 25. Rd1 {[%clk 0:01:50.4]} 25... Be3+ {[%clk 0:00:44.3]} 26. Kf1
{[%clk 0:01:51.1]} 26... h4 {[%clk 0:00:30.7]} 27. Ne2 {[%clk 0:01:50.3]} 27...
Nxe4 {[%clk 0:00:30.8]} 28. Nxd4 {[%clk 0:01:45.9]} 28... Rd8 {[%clk 0:00:25.9]}
29. fxe4 {[%clk 0:01:32.9]} 29... Rxd4 {[%clk 0:00:25.8]} 30. Rb1 {[%clk
0:01:28.6]} 30... Ra4 {[%clk 0:00:19.9]} 31. Ke2 {[%clk 0:01:18.2]} 31... Bf4
{[%clk 0:00:19.4]} 32. Kf3 {[%clk 0:01:16.6]} 32... Bxh2 {[%clk 0:00:19.3]} 33.
Rb6 {[%clk 0:01:12.4]} 33... Kg7 {[%clk 0:00:17.4]} 34. e5 {[%clk 0:01:08.5]}
34... Bxe5 {[%clk 0:00:16.6]} 35. Re6 {[%clk 0:01:05.7]} 35... Bf6 {[%clk
0:00:15.7]} 36. Re2 {[%clk 0:01:04.1]} 36... Ra3+ {[%clk 0:00:15.7]} 37. Kg4
{[%clk 0:01:03.9]} 37... Ra4+ {[%clk 0:00:15.2]} 38. Kh3 {[%clk 0:01:03.2]}
38... g5 {[%clk 0:00:15.4]} 39. Rc2 {[%clk 0:00:59.5]} 39... Kg6 {[%clk
0:00:15.5]} 40. g3 {[%clk 0:00:59.4]} 40... g4+ {[%clk 0:00:14.7]} 41. Kh2
{[%clk 0:00:58.2]} 41... h3 {[%clk 0:00:14.6]} 42. Re2 {[%clk 0:00:53]} 42...
Ra3 {[%clk 0:00:14.2]} 43. Rc2 {[%clk 0:00:39.2]} 43... Be5 {[%clk 0:00:11.9]}
44. Rd2 {[%clk 0:00:39.5]} 44... Bxg3+ {[%clk 0:00:10.8]} 45. Kh1 {[%clk
0:00:39.3]} 45... Be5 {[%clk 0:00:10.9]} 46. Rd5 {[%clk 0:00:38.4]} 46... Kf5
{[%clk 0:00:11]} 47. Rc5 {[%clk 0:00:36.8]} 47... g3 {[%clk 0:00:09.9]} 48. Rc2
{[%clk 0:00:35.8]} 48... Rd3 {[%clk 0:00:08.9]} 49. Rc1 {[%clk 0:00:35.5]} 49...
g2+ {[%clk 0:00:07.9]} 50. Kg1 {[%clk 0:00:36.1]} 50... Bd4+ {[%clk 0:00:07.9]}
51. Kh2 {[%clk 0:00:36.7]} 51... g1=Q+ {[%clk 0:00:08.4]} 52. Rxg1 {[%clk
0:00:37.1]} 52... Bxg1+ {[%clk 0:00:09]} 53. Kxg1 {[%clk 0:00:37.3]} 53... Rd2
{[%clk 0:00:09.3]} 0-1